[Event "GER-ch Women 2020"]
[Site "Magdeburg"]
[Date "2020.08.18"]
[Round "4.7"]
[White "Bluebaum, Johanna"]
[Black "Stowicek, Yara Mathilda"]
[Result "1-0"]
[ECO "A52"]
[WhiteElo "2011"]
[BlackElo "1674"]
[Annotator "ChessBase"]
[PlyCount "138"]
[EventDate "2020.08.16"]
[EventType "swiss"]
[EventCountry "GER"]
[SourceTitle "playchess.com"]
[Source "ChessBase"]
[SourceQuality "1"]
[TimeControl "40/5400+30:1800+30"]

1. d4 {[%emt 0:00:00]} Nf6 {[%emt 0:00:00]} 2. c4 {[%emt 0:00:00]} e5 {[%emt 0:00:00]} 3. dxe5 {[%emt 0:00:14]} Ng4 {[%emt 0:00:03]} 4. Bf4 {[%emt 0:00:57]} Nc6 {[%emt 0:00:18]} 5. Nf3 {[%emt 0:00:14]} Bb4+ {[%emt 0:00:23]} 6. Nbd2 {[%emt 0:00:30]} Qe7 {[%emt 0:00:16]} 7. e3 {[%emt 0:00:53]} Ngxe5 {[%emt 0:01:03]} 8. Nxe5 {[%emt 0:02:12]} Nxe5 {[%emt 0:00:17]} 9. Be2 {[%emt 0:00:38]} O-O {[%emt 0:03:07]} 10. O-O {[%emt 0:00:35]} Bxd2 {[%emt 0:02:37]} 11. Qxd2 {[%emt 0:00:18]} d6 {[%emt 0:00:17]} 12. Rfd1 {[%emt 0:06:39]} Bf5 {[%emt 0:02:35]} 13. Rac1 {[%emt 0:00:56]} Rad8 {[%emt 0:00:42]} 14. Qa5 {[%emt 0:03:21]} b6 {[%emt 0:06:56]} 15. Qa3 {[%emt 0:02:59]} a5 {[%emt 0:01:48]} 16. Rd5 {[%emt 0:03:18]} Qf6 {[%emt 0:04:47]} 17. Qc3 {[%emt 0:09:30]} Be4 {[%emt 0:07:51]} 18. Bxe5 {[%emt 0:05:43]} Qg6 {[%emt 0:03:50]} 19. Bg3 {[%emt 0:00:54]} Bxd5 {[%emt 0:00:44]} 20. cxd5 {[%emt 0:00:09]} Rd7 {[%emt 0:00:59]} 21. Bd3 {[%emt 0:03:10]} f5 {[%emt 0:01:28]} 22. Qc6 {[%emt 0:00:50]} Qf7 {[%emt 0:01:37]} 23. Bb5 {[%emt 0:01:16]} Re7 {[%emt 0:04:22]} 24. Bh4 {[%emt 0:03:27]} Re4 {[%emt 0:02:13]} 25. Bg3 {[%emt 0:02:30]} Re7 {[%emt 0:00:22]} 26. Bd3 {[%emt 0:05:05]} h6 {[%emt 0:00:41]} 27. Qc2 {[%emt 0:01:24]} g6 {[%emt 0:02:10]} 28. Re1 {[%emt 0:02:20]} Rfe8 {[%emt 0:02:43]} 29. Bb5 {[%emt 0:00:32]} Rf8 {[%emt 0:01:40]} 30. f3 {[%emt 0:01:11]} Kh7 {[%emt 0:02:11]} 31. e4 {[%emt 0:00:30]} f4 {[%emt 0:01:53]} 32. Bh4 {[%emt 0:00:40]} Re5 {[%emt 0:00:47]} 33. Rc1 {[%emt 0:01:02]} c5 {[%emt 0:02:31]} 34. Be1 {[%emt 0:01:09]} Re7 {[%emt 0:01:05]} 35. Bc3 {[%emt 0:00:18]} Kg8 {[%emt 0:02:34]} 36. b3 {[%emt 0:00:31]} h5 {[%emt 0:01:37]} 37. e5 {[%emt 0:00:56]} Kh7 {[%emt 0:08:56]} 38. e6 {[%emt 0:02:14]} Qf5 {[%emt 0:02:02]} 39. Qxf5 {[%emt 0:01:21]} Rxf5 {[%emt 0:00:16]} 40. Bc6 {[%emt 0:00:53]} g5 {[%emt 0:01:41]} 41. a3 {[%emt 0:30:53]} g4 {[%emt 0:31:20]} 42. b4 {[%emt 0:00:51]} axb4 {[%emt 0:00:31]} 43. axb4 {[%emt 0:00:09]} Rf8 {[%emt 0:01:39]} 44. bxc5 {[%emt 0:00:44]} bxc5 {[%emt 0:00:34]} 45. Rb1 {[%emt 0:00:08]} Kg6 {[%emt 0:01:29]} 46. Bb5 {[%emt 0:01:28]} Kg5 {[%emt 0:01:17]} 47. Bc6 {[%emt 0:02:11]} Kg6 {[%emt 0:00:25]} 48. Kf2 {[%emt 0:00:35]} Kg5 {[%emt 0:02:30]} 49. Ke2 {[%emt 0:00:24]} Kg6 {[%emt 0:00:54]} 50. Kd3 {[%emt 0:00:09]} Kf5 {[%emt 0:00:10]} 51. Rb6 {[%emt 0:00:46]} Rd8 {[%emt 0:01:24]} 52. Kc4 {[%emt 0:02:17]} Kg6 {[%emt 0:01:47]} 53. Ba4 {[%emt 0:01:42]} Ra7 {[%emt 0:01:31]} 54. Bc2+ {[%emt 0:00:11]} Kg5 {[%emt 0:00:34]} 55. Bb3 {[%emt 0:08:03]} Kf5 {[%emt 0:00:34]} 56. Kb5 {[%emt 0:01:00]} Rc7 {[%emt 0:01:23]} 57. Bc2+ {[%emt 0:00:37]} Kg5 {[%emt 0:00:12]} 58. Ba5 {[%emt 0:00:14]} Ra7 {[%emt 0:01:39]} 59. Ra6 {[%emt 0:08:07]} Rb8+ {[%emt 0:02:56]} 60. Bb6 {[%emt 0:00:55]} Rxa6 {[%emt 0:01:37]} 61. Kxa6 {[%emt 0:00:06]} Rxb6+ {[%emt 0:00:43]} 62. Kxb6 {[%emt 0:00:14]} Kf6 {[%emt 0:00:07]} 63. fxg4 {[%emt 0:01:44]} hxg4 {[%emt 0:00:30]} 64. Bd1 {[%emt 0:00:11]} g3 {[%emt 0:01:11]} 65. hxg3 {[%emt 0:01:24]} fxg3 {[%emt 0:00:12]} 66. Kb5 {[%emt 0:00:20]} Ke7 {[%emt 0:01:14]} 67. Kc4 {[%emt 0:00:05]} Kf6 {[%emt 0:00:21]} 68. Kd3 {[%emt 0:00:03]} Ke7 {[%emt 0:01:31]} 69. Ke4 {[%emt 0:00:04]} Kf6 {[%emt 0:00:25]} 1-0

[Event "GER-ch Women 2020"]
[Site "Magdeburg"]
[Date "2020.08.18"]
[Round "4.8"]
[White "Kuehnel, Lena"]
[Black "Kopylov, Luba"]
[Result "1/2-1/2"]
[ECO "B54"]
[WhiteElo "1972"]
[BlackElo "2027"]
[Annotator "NA"]
[PlyCount "74"]
[EventDate "2020.08.16"]
[EventType "swiss"]
[EventCountry "GER"]
[SourceTitle "playchess.com"]
[Source "ChessBase"]
[SourceQuality "1"]
[TimeControl "40/5400+30:1800+30"]

1. e4 {[%emt 0:00:00]} c5 {[%emt 0:01:11]} 2. Nf3 {[%emt 0:00:00]} d6 {[%emt 0:00:07]} 3. d4 {[%emt 0:00:00]} cxd4 {[%emt 0:00:05]} 4. Nxd4 {[%emt 0:00:00]} Nf6 {[%emt 0:00:05]} 5. f3 {[%emt 0:00:16]} Nc6 {[%emt 0:01:20]} 6. c4 {[%emt 0:01:32]} Qb6 {[%emt 0:06:33]} 7. Nc2 {[%emt 0:00:47]} e6 {[%emt 0:00:30]} 8. Nc3 {[%emt 0:01:27]} Be7 {[%emt 0:00:38] B55: Sicilian: 2...d6 3 d4 cxd4 4 Nxd4 Nf6 5 f3.} 9. Rb1 {[%emt 0:03:40]} Nb4 {[%emt 0:06:52]} 10. Nxb4 {[%emt 0:05:42]} Qxb4 {[%emt 0:00:06]} 11. Be3 {[%emt 0:02:02]} O-O {[%emt 0:03:34]} 12. Be2 {[%emt 0:02:55] [#]} Rd8 $146 {[%emt 0:05:08]} ({Predecessor:} 12... Bd7 13. O-O Bc6 14. a3 Qa5 15. b4 Qc7 16. Rc1 Qb8 17. Qb3 b6 18. Rfd1 Rd8 {½-½ (29) Mastrovasilis,D (2533)-Georgiev,K (2637) Topola 2004}) 13. O-O {[%emt 0:03:49]} d5 {[%emt 0:06:12]} 14. cxd5 {[%emt 0:05:10]} exd5 {[%emt 0:00:46]} 15. e5 {[%emt 0:16:01]} Bc5 {[%emt 0:14:28]} 16. Bxc5 {[%emt 0:16:25]} Qxc5+ {[%emt 0:00:17]} 17. Kh1 {[%emt 0:00:15]} Ne8 {[%emt 0:04:29]} 18. f4 {[%emt 0:05:09]} g6 {[%emt 0:11:25]} 19. Rc1 {[%emt 0:07:38]} Be6 {[%emt 0:06:28]} 20. Qe1 {[%emt 0:02:50]} Rac8 {[%emt 0:03:44]} 21. Rd1 {[%emt 0:05:05]} Qb4 {[%emt 0:05:26]} 22. Rd2 {[%emt 0:04:03]} d4 {[%emt 0:10:24]} 23. a3 {[%emt 0:02:13]} Qb3 {[%emt 0:04:08]} 24. Ne4 {[%emt 0:00:37]} Qe3 {[%emt 0:02:40]} 25. Bd3 {[%emt 0:03:27]} Bf5 {[%emt 0:02:01]} 26. Nf6+ {[%emt 0:03:31]} Nxf6 $11 {[%emt 0:00:07]} 27. Bxf5 {[%emt 0:00:04]} gxf5 {[%emt 0:00:53]} 28. exf6 {[%emt 0:00:11]} Qxe1 {[%emt 0:01:02]} 29. Rxe1 {[%emt 0:00:01]} d3 {[%emt 0:00:16]} 30. Kg1 {[%emt 0:00:52]} Rd4 {[%emt 0:01:54]} 31. Red1 {[%emt 0:01:44]} Rcd8 {[%emt 0:00:04]} 32. g3 {[%emt 0:00:46]} h5 {[%emt 0:00:05]} 33. Kf2 {[%emt 0:00:32]} Kh7 {[%emt 0:00:04]} 34. Ke3 {[%emt 0:00:59]} Re4+ {[%emt 0:00:05]} 35. Kf3 {[%emt 0:00:14]} Red4 {[%emt 0:00:17]} 36. Ke3 {[%emt 0:00:16]} Re4+ {[%emt 0:00:05]} 37. Kf3 {[%emt 0:00:05]} Red4 1/2-1/2

[Event "GER-ch Women 2020"]
[Site "Magdeburg"]
[Date "2020.08.18"]
[Round "4.9"]
[White "Bardorz, Jana"]
[Black "Hielscher, Ursula"]
[Result "1-0"]
[ECO "C02"]
[WhiteElo "2000"]
[BlackElo "1789"]
[Annotator "NA"]
[PlyCount "87"]
[EventDate "2020.08.16"]
[EventType "swiss"]
[EventCountry "GER"]
[SourceTitle "playchess.com"]
[Source "ChessBase"]
[SourceQuality "1"]
[TimeControl "40/5400+30:1800+30"]

1. e4 {[%emt 0:00:00]} e6 {[%emt 0:00:00]} 2. d4 {[%emt 0:00:00]} d5 {[%emt 0:00:00]} 3. e5 {[%emt 0:00:00]} c5 {[%emt 0:00:00]} 4. c3 {[%emt 0:00:00]} Nc6 {[%emt 0:00:00]} 5. Nf3 {[%emt 0:00:00]} Qb6 {[%emt 0:00:27]} 6. a3 {[%emt 0:00:26]} Nge7 {[%emt 0:01:50]} 7. b4 {[%emt 0:00:18]} cxd4 {[%emt 0:00:33]} 8. cxd4 {[%emt 0:00:17]} Nf5 {[%emt 0:01:06]} 9. Be3 {[%emt 0:01:00]} Nxe3 {[%emt 0:01:01]} 10. fxe3 {[%emt 0:00:07]} Be7 {[%emt 0:02:43]} 11. Bd3 {[%emt 0:01:20]} Bd7 {[%emt 0:01:40] C02: French: Advance Variation.} 12. Nc3 {[%emt 0:02:11]} a6 {[%emt 0:06:49]} 13. Na4 {[%emt 0:07:30]} Qd8 {[%emt 0:06:21]} 14. Nc5 {[%emt 0:03:09] [#]} Bxc5 $146 {[%emt 0:04:55]} ({Predecessor:} 14... Qc8 15. Rc1 O-O 16. O-O Be8 17. Qc2 g6 18. Qf2 b6 19. Nb3 Qb7 20. Qg3 Na7 {1-0 (62) Kontic,D (2306)-Zhukov,A (1582) Petrovac 2015}) 15. bxc5 {[%emt 0:01:44]} Qa5+ {[%emt 0:00:23]} 16. Nd2 {[%emt 0:03:52]} Qc3 {[%emt 0:03:29]} 17. Ke2 {[%emt 0:09:21]} Nxd4+ {[%emt 0:21:45]} 18. exd4 {[%emt 0:00:27]} Qxd4 {[%emt 0:00:04]} 19. Nf3 {[%emt 0:03:22]} Qxc5 {[%emt 0:00:38]} 20. Qb3 {[%emt 0:02:56]} Bc6 {[%emt 0:04:10]} 21. Rac1 {[%emt 0:06:23]} Qe7 {[%emt 0:03:28]} 22. Qb4 {[%emt 0:07:00]} Qxb4 {[%emt 0:03:57]} 23. axb4 {[%emt 0:00:06]} h6 {[%emt 0:01:24]} 24. Nd4 {[%emt 0:03:44]} Kd7 {[%emt 0:01:03]} 25. Rc5 {[%emt 0:04:51]} Rhc8 {[%emt 0:03:27]} 26. Rf1 {[%emt 0:03:27]} Ke7 {[%emt 0:01:31]} 27. Rfc1 {[%emt 0:04:41]} Kd7 {[%emt 0:00:17]} 28. Kd2 {[%emt 0:04:40]} f6 {[%emt 0:02:42]} 29. exf6 {[%emt 0:00:40]} gxf6 {[%emt 0:00:01]} 30. Re1 {[%emt 0:05:01]} Re8 {[%emt 0:03:16]} 31. Nxe6 {[%emt 0:09:39]} Rxe6 {[%emt 0:02:23]} 32. Bf5 {[%emt 0:00:06]} Rae8 {[%emt 0:00:05]} 33. Rc3 {[%emt 0:01:43]} Kd6 {[%emt 0:01:51]} 34. Rxe6+ {[%emt 0:00:17]} Rxe6 {[%emt 0:00:06]} 35. Bxe6 {[%emt 0:00:05]} Kxe6 {[%emt 0:00:02]} 36. Rh3 {[%emt 0:00:52]} Ke5 {[%emt 0:01:32]} 37. Rxh6 {[%emt 0:02:36]} Kf5 {[%emt 0:04:07]} 38. Kd3 {[%emt 0:02:26]} Kg5 {[%emt 0:01:23]} 39. Rh8 {[%emt 0:00:55]} Kg6 {[%emt 0:01:48]} 40. Kd4 $18 {[%emt 0:01:59]} Kf5 {[%emt 0:03:18]} 41. g3 {[%emt 0:32:14]} Kg4 {[%emt 0:31:07]} 42. Rf8 {[%emt 0:02:55]} Kh3 {[%emt 0:00:17]} 43. Rxf6 {[%emt 0:01:02]} Kxh2 {[%emt 0:00:05]} 44. g4 {[%emt 0:00:15]} 1-0

[Event "GER-ch Women 2020"]
[Site "Magdeburg"]
[Date "2020.08.18"]
[Round "4.10"]
[White "Brunner, Sophia"]
[Black "Zimmer, Elke"]
[Result "1-0"]
[ECO "D02"]
[WhiteElo "1881"]
[BlackElo "1952"]
[Annotator "ChessBase"]
[PlyCount "81"]
[EventDate "2020.08.16"]
[EventType "swiss"]
[EventCountry "GER"]
[SourceTitle "playchess.com"]
[Source "ChessBase"]
[SourceQuality "1"]
[TimeControl "40/5400+30:1800+30"]

1. d4 {[%emt 0:00:00]} d5 {[%emt 0:00:00]} 2. Nf3 {[%emt 0:00:00]} Nf6 {[%emt 0:00:06]} 3. g3 {[%emt 0:00:21]} e6 {[%emt 0:00:36]} 4. Bg2 {[%emt 0:00:38]} c5 {[%emt 0:00:39]} 5. O-O {[%emt 0:02:41]} Nc6 {[%emt 0:00:24]} 6. b3 {[%emt 0:03:57]} Be7 {[%emt 0:05:30]} 7. Bb2 {[%emt 0:01:41]} O-O {[%emt 0:00:38]} 8. Nbd2 {[%emt 0:05:40]} cxd4 {[%emt 0:08:15]} 9. Nxd4 {[%emt 0:00:28]} Bd7 {[%emt 0:01:34]} 10. Nxc6 {[%emt 0:22:51]} Bxc6 {[%emt 0:02:19]} 11. Nf3 {[%emt 0:00:22]} b6 {[%emt 0:11:52]} 12. Ne5 {[%emt 0:04:31]} Bb7 {[%emt 0:01:29]} 13. c4 {[%emt 0:05:01]} Rc8 {[%emt 0:13:12]} 14. Rc1 {[%emt 0:02:39]} Ba8 {[%emt 0:08:26]} 15. e3 {[%emt 0:11:36]} a6 {[%emt 0:08:44]} 16. Qe2 {[%emt 0:05:08]} a5 {[%emt 0:05:01]} 17. Rfd1 {[%emt 0:02:57]} Bc5 {[%emt 0:00:21]} 18. cxd5 {[%emt 0:01:28]} exd5 {[%emt 0:00:34]} 19. Nd3 {[%emt 0:03:39]} Bd6 {[%emt 0:01:59]} 20. Rxc8 {[%emt 0:01:24]} Qxc8 {[%emt 0:00:10]} 21. Bd4 {[%emt 0:08:30]} Ne4 {[%emt 0:02:06]} 22. Rc1 {[%emt 0:00:57]} Qe6 {[%emt 0:01:06]} 23. Qb2 {[%emt 0:05:29]} Qg6 {[%emt 0:02:47]} 24. Ne5 {[%emt 0:01:27]} Bxe5 {[%emt 0:04:08]} 25. Bxe5 {[%emt 0:00:02]} Nc5 {[%emt 0:00:43]} 26. Bf1 {[%emt 0:06:08]} d4 {[%emt 0:06:38]} 27. Bxd4 {[%emt 0:01:06]} Nd3 {[%emt 0:02:46]} 28. Bxd3 {[%emt 0:00:36]} Qxd3 {[%emt 0:00:05]} 29. Qc2 {[%emt 0:00:56]} Qb5 {[%emt 0:00:06]} 30. e4 {[%emt 0:01:12]} Re8 {[%emt 0:00:39]} 31. f3 {[%emt 0:00:23]} h5 {[%emt 0:01:58]} 32. Qc4 {[%emt 0:01:10]} Qg5 {[%emt 0:00:27]} 33. Bxb6 {[%emt 0:00:44]} h4 {[%emt 0:00:10]} 34. Bf2 {[%emt 0:00:12]} h3 {[%emt 0:01:30]} 35. Rd1 {[%emt 0:00:30]} Qf6 {[%emt 0:00:17]} 36. Qd3 {[%emt 0:00:32]} Bc6 {[%emt 0:01:20]} 37. Bd4 {[%emt 0:00:19]} Qg5 {[%emt 0:03:38]} 38. Bb2 {[%emt 0:00:35]} Bb5 {[%emt 0:02:43]} 39. Qd2 {[%emt 0:00:31]} Qh5 {[%emt 0:03:23]} 40. Qc3 {[%emt 0:00:44]} Qg5 {[%emt 0:00:16]} 41. Rd5 {[%emt 0:30:50]} 1-0

[Event "GER-ch Women 2020"]
[Site "Magdeburg"]
[Date "2020.08.19"]
[Round "5.1"]
[White "Bashylina, Luisa"]
[Black "Burchardt, Brigitte"]
[Result "0-1"]
[ECO "B53"]
[WhiteElo "1975"]
[BlackElo "2091"]
[Annotator "NA"]
[PlyCount "68"]
[EventDate "2020.08.16"]
[EventType "swiss"]
[EventCountry "GER"]
[SourceTitle "playchess.com"]
[Source "ChessBase"]
[SourceQuality "1"]
[TimeControl "40/5400+30:1800+30"]

1. e4 {[%emt 0:00:00]} c5 {[%emt 0:00:00]} 2. Nf3 {[%emt 0:00:00]} d6 {[%emt 0:00:00]} 3. d4 {[%emt 0:00:00]} cxd4 {[%emt 0:00:00]} 4. Qxd4 {[%emt 0:00:00]} Nc6 {[%emt 0:05:47]} 5. Bb5 {[%emt 0:00:00]} Bd7 {[%emt 0:00:06]} 6. Bxc6 {[%emt 0:00:01]} Bxc6 {[%emt 0:00:03]} 7. Nc3 {[%emt 0:00:06]} Nf6 {[%emt 0:03:01]} 8. Bg5 {[%emt 0:00:05]} e6 {[%emt 0:02:02]} 9. Qd3 {[%emt 0:00:45] B53: Sicilian: 2...d6: Lines with Qxd4.} h6 {[%emt 0:07:25]} 10. Bh4 {[%emt 0:02:20]} Qa5 {[%emt 0:16:57]} (10... Be7 $11 {remains equal.}) 11. O-O-O {[%emt 0:03:13]} (11. Bxf6 $5 gxf6 12. O-O $14) 11... Be7 {[%emt 0:03:56]} 12. Nd4 {[%emt 0:02:31]} O-O {[%emt 0:04:03]} 13. f4 {[%emt 0:01:03]} Rfe8 {[%emt 0:03:40]} 14. Bxf6 {[%emt 0:10:29]} Bxf6 {[%emt 0:00:36]} 15. g4 {[%emt 0:00:24] [#]} Rad8 $146 {[%emt 0:01:16]} ({Predecessor:} 15... e5 16. Nxc6 bxc6 17. f5 Rad8 18. h4 d5 19. Kb1 dxe4 20. Qxe4 Rxd1+ 21. Nxd1 Rd8 {1-0 (29) Movsesian,S (2658)-Kogan,A (2567) playchess.com INT 2006}) 16. h4 {[%emt 0:02:27]} Bxd4 {[%emt 0:03:02]} 17. Qxd4 {[%emt 0:00:28]} e5 {[%emt 0:00:08]} 18. Qg1 {[%emt 0:14:37]} (18. fxe5 $11 Qxe5 19. Qxe5 Rxe5 20. Rd4) 18... exf4 {[%emt 0:03:16]} 19. g5 {[%emt 0:00:28]} h5 {[%emt 0:00:51]} 20. g6 {[%emt 0:01:59]} ({White should try} 20. Qd4 $15) 20... fxg6 {[%emt 0:02:58]} 21. Qxg6 {[%emt 0:00:49]} Qe5 {[%emt 0:00:19]} 22. Rhg1 {[%emt 0:03:08]} Re6 {[%emt 0:03:01]} 23. Qg2 {[%emt 0:01:16]} Qf6 {[%emt 0:03:44]} 24. Qe2 {[%emt 0:17:12]} Qf7 {[%emt 0:18:37]} 25. Rg5 {[%emt 0:03:35]} f3 $19 {[%emt 0:00:07]} 26. Qe3 {[%emt 0:02:09]} g6 {[%emt 0:02:20]} 27. e5 {[%emt 0:07:55]} Rde8 {[%emt 0:01:06]} 28. Qd3 {[%emt 0:06:11]} dxe5 {[%emt 0:01:11]} 29. Rdg1 {[%emt 0:00:39]} e4 {[%emt 0:00:23]} 30. Qc4 {[%emt 0:00:41]} Kh7 {[%emt 0:01:46]} 31. Nd1 {[%emt 0:03:11]} b5 {[%emt 0:02:54]} 32. Qb3 {[%emt 0:02:51]} f2 {[%emt 0:00:54]} 33. Rf1 {[%emt 0:00:17]} e3 {[%emt 0:00:57]} 34. Nxe3 {[%emt 0:00:25]} Qf4 0-1

[Event "GER-ch Women 2020"]
[Site "Magdeburg"]
[Date "2020.08.19"]
[Round "5.2"]
[White "Vidonyak, Nellya"]
[Black "Osmanodja, Filiz"]
[Result "1-0"]
[ECO "A46"]
[WhiteElo "2136"]
[BlackElo "2293"]
[Annotator "ChessBase"]
[PlyCount "97"]
[EventDate "2020.08.16"]
[EventType "swiss"]
[EventCountry "GER"]
[SourceTitle "playchess.com"]
[Source "ChessBase"]
[SourceQuality "1"]
[TimeControl "40/5400+30:1800+30"]

1. d4 {[%emt 0:00:00]} Nf6 {[%emt 0:00:00]} 2. Nf3 {[%emt 0:00:00]} e6 {[%emt 0:00:00]} 3. Bf4 {[%emt 0:02:17]} c5 {[%emt 0:06:03]} 4. e3 {[%emt 0:05:29]} Qb6 {[%emt 0:00:20]} 5. Nbd2 {[%emt 0:05:56]} Qxb2 {[%emt 0:05:56]} 6. Bc4 {[%emt 0:03:35]} Nc6 {[%emt 0:07:05]} 7. Rb1 {[%emt 0:03:35]} Qa3 {[%emt 0:04:56]} 8. dxc5 {[%emt 0:08:01]} Qxc5 {[%emt 0:03:32]} 9. Rb5 {[%emt 0:00:30]} Qe7 {[%emt 0:00:26]} 10. O-O {[%emt 0:01:25]} d5 {[%emt 0:00:43]} 11. Be2 {[%emt 0:01:09]} a6 {[%emt 0:01:42]} 12. Rb6 {[%emt 0:03:27]} Qd8 {[%emt 0:06:13]} 13. Rb1 {[%emt 0:00:08]} b5 {[%emt 0:04:07]} 14. c3 {[%emt 0:02:45]} Bd7 {[%emt 0:08:47]} 15. a4 {[%emt 0:02:18]} bxa4 {[%emt 0:07:05]} 16. Qxa4 {[%emt 0:00:34]} Be7 {[%emt 0:03:21]} 17. Qa2 {[%emt 0:02:33]} O-O {[%emt 0:01:49]} 18. Rb7 {[%emt 0:02:33]} Bc8 {[%emt 0:03:52]} 19. Rb2 {[%emt 0:04:06]} Nh5 {[%emt 0:06:41]} 20. Be5 {[%emt 0:01:39]} Nf6 {[%emt 0:06:49]} 21. Bg3 {[%emt 0:03:03]} a5 {[%emt 0:02:53]} 22. Bb5 {[%emt 0:04:17]} Na7 {[%emt 0:01:21]} 23. Ba4 {[%emt 0:01:55]} Ba6 {[%emt 0:02:16]} 24. Rfb1 {[%emt 0:01:51]} Bd3 {[%emt 0:00:29]} 25. Ra1 {[%emt 0:00:29]} Bd6 {[%emt 0:06:02]} 26. Ne5 {[%emt 0:01:24]} Bf5 {[%emt 0:01:43]} 27. c4 {[%emt 0:01:12]} Rc8 {[%emt 0:05:31]} 28. Bd1 {[%emt 0:00:57]} Bxe5 {[%emt 0:01:52]} 29. Bxe5 {[%emt 0:00:06]} Nc6 {[%emt 0:00:01]} 30. Bc3 {[%emt 0:04:43]} Bd3 {[%emt 0:00:25]} 31. c5 {[%emt 0:09:38]} Qe7 {[%emt 0:00:01]} 32. Qa3 {[%emt 0:00:37]} Bg6 {[%emt 0:01:26]} 33. Rc1 {[%emt 0:02:18]} e5 {[%emt 0:00:18]} 34. Nb3 {[%emt 0:02:49]} d4 {[%emt 0:00:23]} 35. exd4 {[%emt 0:01:33]} exd4 {[%emt 0:00:34]} 36. Re2 {[%emt 0:00:39]} Qd7 {[%emt 0:00:56]} 37. Rd2 {[%emt 0:01:43]} Qe6 {[%emt 0:01:25]} 38. Rxd4 {[%emt 0:03:05]} Nxd4 {[%emt 0:00:14]} 39. Nxd4 {[%emt 0:00:02]} Qd5 {[%emt 0:01:19]} 40. c6 {[%emt 0:00:01]} Rfe8 {[%emt 0:00:43]} 41. Bb3 {[%emt 0:31:52]} Qg5 {[%emt 0:05:42]} 42. Nf3 {[%emt 0:00:00]} Qf4 {[%emt 0:03:33]} 43. Bd2 {[%emt 0:00:00]} Qe4 {[%emt 0:05:07]} 44. Ba4 {[%emt 0:00:00]} Bh5 {[%emt 0:03:28]} 45. Re1 {[%emt 0:00:00]} Qd5 {[%emt 0:01:05]} 46. Rxe8+ {[%emt 0:00:00]} Rxe8 {[%emt 0:02:53]} 47. c7 {[%emt 0:00:00]} Qxd2 {[%emt 0:04:40]} 48. Nxd2 {[%emt 0:00:00]} Re1+ {[%emt 0:00:21]} 49. Nf1 {[%emt 0:00:00]} 1-0

[Event "GER-ch Women 2020"]
[Site "Magdeburg"]
[Date "2020.08.19"]
[Round "5.3"]
[White "Rogozenco, Teodora"]
[Black "Voicu-Jagodzinsky, Carmen"]
[Result "0-1"]
[ECO "A61"]
[WhiteElo "1979"]
[BlackElo "2244"]
[Annotator "ChessBase"]
[PlyCount "74"]
[EventDate "2020.08.16"]
[EventType "swiss"]
[EventCountry "GER"]
[SourceTitle "playchess.com"]
[Source "ChessBase"]
[SourceQuality "1"]
[TimeControl "40/5400+30:1800+30"]

1. d4 {[%emt 0:00:00]} Nf6 {[%emt 0:00:00]} 2. c4 {[%emt 0:00:00]} c5 {[%emt 0:00:00]} 3. d5 {[%emt 0:00:08]} e6 {[%emt 0:00:00]} 4. Nc3 {[%emt 0:00:36]} exd5 {[%emt 0:00:00]} 5. cxd5 {[%emt 0:00:14]} d6 {[%emt 0:00:00]} 6. Nf3 {[%emt 0:00:23]} g6 {[%emt 0:00:00]} 7. h3 {[%emt 0:00:20]} Bg7 {[%emt 0:00:36]} 8. e4 {[%emt 0:00:25]} O-O {[%emt 0:00:06]} 9. Bd3 {[%emt 0:00:19]} b5 {[%emt 0:00:42]} 10. Bxb5 {[%emt 0:00:45]} Nxe4 {[%emt 0:01:38]} 11. Nxe4 {[%emt 0:00:30]} Qa5+ {[%emt 0:00:03]} 12. Nfd2 {[%emt 0:00:48]} Qxb5 {[%emt 0:00:08]} 13. Nxd6 {[%emt 0:00:35]} Qa6 {[%emt 0:00:11]} 14. N2c4 {[%emt 0:00:47]} Nd7 {[%emt 0:00:19]} 15. O-O {[%emt 0:00:43]} Ne5 {[%emt 0:00:10]} 16. Nxc8 {[%emt 0:15:38]} Raxc8 {[%emt 0:00:26]} 17. Nxe5 {[%emt 0:02:08]} Bxe5 {[%emt 0:00:05]} 18. Re1 {[%emt 0:07:49]} Rfe8 {[%emt 0:01:08]} 19. Rb1 {[%emt 0:19:58]} Qxa2 {[%emt 0:06:06]} 20. Bh6 {[%emt 0:00:17]} Rcd8 {[%emt 0:26:59]} 21. d6 {[%emt 0:22:52]} Bxd6 {[%emt 0:10:31]} 22. Qc2 {[%emt 0:07:32]} Rxe1+ {[%emt 0:09:36]} 23. Rxe1 {[%emt 0:00:11]} Qd5 {[%emt 0:05:14]} 24. Qe2 {[%emt 0:09:27]} Bf8 {[%emt 0:05:56]} 25. Bxf8 {[%emt 0:00:09]} Rxf8 {[%emt 0:00:15]} 26. Qb5 {[%emt 0:01:24]} Qd6 {[%emt 0:06:33]} 27. Rc1 {[%emt 0:02:26]} Rb8 {[%emt 0:10:45]} 28. Qa5 {[%emt 0:05:44]} Rxb2 {[%emt 0:05:28]} 29. Qxa7 {[%emt 0:00:06]} Rd2 {[%emt 0:01:46]} 30. Qa8+ {[%emt 0:01:22]} Kg7 {[%emt 0:00:09]} 31. Qf3 {[%emt 0:00:31]} Qd4 {[%emt 0:01:21]} 32. Kf1 {[%emt 0:00:45]} c4 {[%emt 0:01:35]} 33. Ke1 {[%emt 0:00:27]} Rd3 {[%emt 0:01:12]} 34. Qe2 {[%emt 0:00:13]} h5 {[%emt 0:01:22]} 35. Rd1 {[%emt 0:01:22]} Rxd1+ {[%emt 0:02:04]} 36. Qxd1 {[%emt 0:00:04]} Qxd1+ {[%emt 0:00:28]} 37. Kxd1 {[%emt 0:00:05]} Kf6 {[%emt 0:00:04]} 0-1